fUSD/lending_fUSD_20260530
["ID","MTS","AMOUNT","RATE_DAILY","PERIOD"]
[423392465,1780080640000,-672.64,0.0001013,2]
[423392510,1780080640000,-166.66,0.0001033,2]
[423393101,1780080660000,-5000.0,9.263e-05,2]
[423393102,1780080660000,-1336.75890137,9.263e-05,2]
[423393103,1780080660000,-437.22225603,8.876e-05,2]
[423393105,1780080660000,-1438.26814565,9.263e-05,2]
[423393104,1780080660000,-62.77774397,8.876e-05,2]
[423393110,1780080661000,-46871.95084023,9.263e-05,2]
[423393113,1780080661000,-20.48351389,9.263e-05,2]
[423393112,1780080661000,-2325.00992266,9.263e-05,2]
[423393111,1780080661000,-593.35789555,9.263e-05,2]
[423393109,1780080661000,-426.48028601,9.15e-05,2]
[423393108,1780080661000,-25869.36217374,9.263e-05,2]
[423393107,1780080661000,-103.75547873,9.263e-05,2]
[423393106,1780080661000,-554216.41524398,9.263e-05,2]
[423393114,1780080681000,-1380.98990592,9.263e-05,2]
[423393115,1780080704000,-500.0,8.875e-05,2]
[423393116,1780080724000,-243.75878049,9.206e-05,2]
[423393117,1780080758000,-1165.63684784,8.916e-05,2]
[423393119,1780080778000,-1165.63684784,8.916e-05,2]
[423393120,1780080798000,-1181.18,8.916e-05,2]
[423393121,1780080817000,-1181.18,8.916e-05,2]
[423393123,1780080818000,189.342,8.738e-05,2]
[423393122,1780080818000,2570.047,8.738e-05,2]
[423393124,1780080837000,-1473.28893408,8.916e-05,2]
[423393125,1780080857000,-1473.28893408,8.916e-05,2]
[423393128,1780081287000,200.0,8.381e-05,2]
[423393129,1780081290000,659.2,8.381e-05,2]
[423393132,1780081343000,5252.0,9.19e-05,5]
[423393134,1780081351000,366.93,7.901e-05,2]
[423393135,1780081352000,366.93,7.945e-05,2]
[423393138,1780081353000,366.93,8.077e-05,2]
[423393140,1780081353000,366.93,8.164e-05,2]
[423393136,1780081353000,366.93,7.989e-05,2]
[423393141,1780081353000,366.93,8.208e-05,2]
[423393142,1780081353000,366.93,8.252e-05,2]
[423393143,1780081353000,366.93,8.295e-05,2]
[423393139,1780081353000,366.93,8.12e-05,2]
[423393137,1780081353000,366.93,8.033e-05,2]
[423393147,1780081354000,366.93,8.471e-05,2]
[423393146,1780081354000,366.93,8.427e-05,2]
[423393145,1780081354000,366.93,8.383e-05,2]
[423393144,1780081354000,366.93,8.339e-05,2]
[423393148,1780081355000,366.93,8.514e-05,2]
[423393151,1780081355000,366.93,8.646e-05,2]
[423393150,1780081355000,366.93,8.602e-05,2]
[423393149,1780081355000,366.93,8.558e-05,2]
[423393152,1780081356000,366.93,8.689e-05,2]
[423393153,1780081356000,366.93,8.733e-05,2]
[423393156,1780081392000,2500.0,8.816e-05,2]
[423393158,1780081450000,-168.93882877,8.871e-05,2]
[423393159,1780081504000,-250.0,8.882e-05,2]
[423393160,1780081523000,153.48,8.329e-05,2]
[423393161,1780081524000,153.48,8.792e-05,2]
[423393162,1780081558000,-256.24121951,8.898e-05,2]
[423393173,1780081559000,-552.21354442,8.909e-05,2]
[423393175,1780081559000,-552.21354442,8.909e-05,2]
[423393171,1780081559000,-552.21354442,8.909e-05,2]
[423393172,1780081559000,-552.21354442,8.909e-05,2]
[423393170,1780081559000,-552.21354442,8.909e-05,2]
[423393166,1780081559000,-552.21354442,8.909e-05,2]
[423393167,1780081559000,-552.21354442,8.909e-05,2]
[423393168,1780081559000,-552.21354442,8.909e-05,2]
[423393165,1780081559000,-243.75878049,8.909e-05,2]
[423393164,1780081559000,-552.21354442,8.909e-05,2]
[423393163,1780081559000,-214.48670305,8.909e-05,2]
[423393169,1780081559000,-552.21354442,8.909e-05,2]
[423393174,1780081559000,-552.21354442,8.909e-05,2]
[423393182,1780081559000,-552.21354442,8.909e-05,2]
[423393177,1780081559000,-552.21354442,8.909e-05,2]
[423393188,1780081559000,-552.21354442,8.909e-05,2]
[423393189,1780081559000,-305.64551915,8.909e-05,2]
[423393187,1780081559000,-552.21354442,8.909e-05,2]
[423393184,1780081559000,-552.21354442,8.909e-05,2]
[423393186,1780081559000,-552.21354442,8.909e-05,2]
[423393185,1780081559000,-552.21354442,8.909e-05,2]
[423393180,1780081559000,-552.21354442,8.909e-05,2]
[423393181,1780081559000,-552.21354442,8.909e-05,2]
[423393179,1780081559000,-552.21354442,8.909e-05,2]
[423393178,1780081559000,-552.21354442,8.909e-05,2]
[423393183,1780081559000,-552.21354442,8.909e-05,2]
[423393176,1780081559000,-552.21354442,8.909e-05,2]
[423393190,1780081612000,-150.0,8.908e-05,2]
[423393191,1780081666000,-192.39393861,8.864e-05,2]
[423393198,1780081719000,-192.39393861,8.871e-05,2]
[423393199,1780081741000,1000.0,0.00028081,120]
[423393200,1780081772000,-211.84982987,8.871e-05,2]
[423393201,1780081774000,624.37765729,8.816e-05,2]
[423393202,1780081784000,1000.0,8.206e-05,2]
[423393203,1780081817000,-211.84982986,8.871e-05,2]
[423393239,1780081832000,-9999.99,8.916e-05,2]
[423393236,1780081832000,-150.0,8.915e-05,2]
[423393237,1780081832000,-1653561.26223616,8.916e-05,2]
[423393234,1780081832000,-2914.499,8.915e-05,2]
[423393232,1780081832000,-241.730647,8.913e-05,2]
[423393235,1780081832000,-188.731,8.915e-05,2]
[423393233,1780081832000,-1000.0,8.915e-05,2]
[423393231,1780081832000,-4882.0286614,8.91e-05,2]
[423393229,1780081832000,-174.26848748,8.909e-05,2]
[423393227,1780081832000,-500.0,8.908e-05,2]
[423393230,1780081832000,-500.0,8.909e-05,2]
[423393228,1780081832000,-248.6909654,8.908e-05,2]
[423393224,1780081832000,-1200.0,8.908e-05,2]
[423393217,1780081832000,-500.0,8.907e-05,2]
[423393225,1780081832000,-500.0,8.908e-05,2]
[423393223,1780081832000,-150.0,8.908e-05,2]
[423393222,1780081832000,-500.0,8.907e-05,2]
[423393220,1780081832000,-500.0,8.907e-05,2]
[423393219,1780081832000,-500.0,8.907e-05,2]
[423393218,1780081832000,-500.0,8.907e-05,2]
[423393216,1780081832000,-500.0,8.907e-05,2]
[423393238,1780081832000,-212.38,8.916e-05,2]
[423393215,1780081832000,-500.0,8.907e-05,2]
[423393214,1780081832000,-500.0,8.907e-05,2]
[423393212,1780081832000,-500.0,8.907e-05,2]
[423393213,1780081832000,-500.0,8.907e-05,2]
[423393226,1780081832000,-534.51469477,8.908e-05,2]
[423393240,1780081832000,-521.15,8.916e-05,2]
[423393221,1780081832000,-500.0,8.907e-05,2]
[423393241,1780081832000,-1741.43,8.916e-05,2]
[423393242,1780081832000,-5765.21,8.916e-05,2]
[423393268,1780081832000,-153.48,9.255e-05,2]
[423393270,1780081832000,-151.0,9.26e-05,2]
[423393269,1780081832000,-151.0,9.26e-05,2]
[423393267,1780081832000,-173.0,9.174e-05,2]
[423393266,1780081832000,-1526.6092,9.163e-05,2]
[423393264,1780081832000,-154.63189926,9.163e-05,2]
[423393263,1780081832000,-337.62703847,9.152e-05,2]
[423393262,1780081832000,-359.0,9.149e-05,2]
[423393260,1780081832000,-194.0,9.134e-05,2]
[423393261,1780081832000,-1204.0,9.14e-05,2]
[423393258,1780081832000,-173.0,9.085e-05,2]
[423393254,1780081832000,-192.39393861,9.025e-05,2]
[423393259,1780081832000,-6150.0,9.119e-05,2]
[423393265,1780081832000,-33230.1787,9.163e-05,2]
[423393257,1780081832000,-24999.99,9.07e-05,2]
[423393243,1780081832000,-499.99,8.916e-05,2]
[423393245,1780081832000,-9999.99,8.916e-05,2]
[423393246,1780081832000,-9999.99,8.916e-05,2]
[423393247,1780081832000,-7656.43,8.916e-05,2]
[423393249,1780081832000,-73881.12,8.916e-05,2]
[423393244,1780081832000,-299.99,8.916e-05,2]
[423393250,1780081832000,-3016.81,8.916e-05,2]
[423393252,1780081832000,-53922.72,8.916e-05,2]
[423393251,1780081832000,-999.99,8.916e-05,2]
[423393253,1780081832000,-173.0,8.996e-05,2]
[423393255,1780081832000,-150.99,9.07e-05,2]
[423393248,1780081832000,-1490.42,8.916e-05,2]
[423393256,1780081832000,-1197.37,9.07e-05,2]
[423393272,1780081833000,-177476.45912112,9.263e-05,2]
[423393271,1780081833000,-25300.10428155,9.263e-05,2]
[423393273,1780081833000,-19686.41715623,9.263e-05,2]
[423393275,1780081833000,-1254.41808677,9.263e-05,2]
[423393276,1780081833000,-401.9097152,8.907e-05,2]
[423393277,1780081833000,-98.0902848,8.907e-05,2]
[423393278,1780081833000,-473.83605441,8.907e-05,2]
[423393274,1780081833000,-14770.54025211,9.263e-05,2]
[423393279,1780081838000,-26.16394559,8.907e-05,2]
[423393281,1780081838000,-500.0,8.907e-05,2]
[423393280,1780081838000,-500.0,8.907e-05,2]
[423393282,1780081838000,-500.0,8.907e-05,2]
[423393284,1780081838000,-253.58446573,8.907e-05,2]
[423393285,1780081838000,-500.0,8.907e-05,2]
[423393283,1780081838000,-246.41553427,8.907e-05,2]
[423393287,1780081838000,-38.62813453,8.907e-05,2]
[423393286,1780081838000,-461.37186547,8.907e-05,2]
[423393288,1780081838000,-500.0,8.907e-05,2]
[423393291,1780081838000,-500.0,8.907e-05,2]
[423393295,1780081838000,-42.19620923,8.907e-05,2]
[423393292,1780081838000,-500.0,8.907e-05,2]
[423393299,1780081838000,-500.0,8.907e-05,2]
[423393300,1780081838000,-807.31118503,9.263e-05,2]
[423393298,1780081838000,-500.0,8.907e-05,2]
[423393294,1780081838000,-457.80379077,8.907e-05,2]
[423393301,1780081838000,-368.9477439,9.263e-05,2]
[423393297,1780081838000,-604.60663189,8.907e-05,2]
[423393289,1780081838000,-302.45854822,8.907e-05,2]
[423393290,1780081838000,-197.54145178,8.907e-05,2]
[423393296,1780081838000,-500.0,8.907e-05,2]
[423393293,1780081838000,-500.0,8.907e-05,2]
[423393698,1780081841000,7348.94334271,8.809e-05,2]
[423394266,1780081846000,-9433.41636287,8.809e-05,2]
[423394279,1780081847000,-951548.45536147,8.809e-05,2]
[423394273,1780081847000,-1765.42629126,8.809e-05,2]
[423394277,1780081847000,-486.395,8.809e-05,2]
[423394278,1780081847000,-295.44311689,8.809e-05,2]
[423394275,1780081847000,-415.27967859,8.809e-05,2]
[423394274,1780081847000,-2719.13101438,8.809e-05,2]
[423394276,1780081847000,-252976.01263415,8.809e-05,2]
[423394280,1780081847000,-73435.00000002,8.809e-05,2]
[423394284,1780081847000,-3000.47450081,8.809e-05,2]
[423394286,1780081847000,-316.4671945,8.809e-05,2]
[423394282,1780081847000,-10502.05827183,8.809e-05,2]
[423394287,1780081847000,-5358.0,8.809e-05,2]
[423394288,1780081847000,-779.55417285,8.809e-05,2]
[423394283,1780081847000,-10525.95819999,8.809e-05,2]
[423394285,1780081847000,-4080.93407604,8.809e-05,2]
[423394281,1780081847000,-428.63008229,8.809e-05,2]
[423394931,1780081871000,-31309.01006306,8.809e-05,2]
[423394932,1780081891000,-300.0,8.808e-05,2]
[423394939,1780081949000,5215.0,9.484e-05,5]
[423394940,1780082000000,2000.0,8.298e-05,2]
[423394941,1780082096000,1072.64,8.224e-05,2]
[423394942,1780082130000,-2331.599,8.633e-05,2]
[423394943,1780082183000,-300.0,8.631e-05,2]
[423394944,1780082184000,556.09254299,0.00028082,120]
[423394945,1780082237000,-326.02814834,8.631e-05,2]
[423394947,1780082265000,515.0,7.812e-05,2]
[423394946,1780082265000,515.0,7.769e-05,2]
[423394949,1780082265000,515.0,7.898e-05,2]
[423394948,1780082265000,515.0,7.855e-05,2]
[423394954,1780082266000,515.0,8.113e-05,2]
[423394953,1780082266000,515.0,8.07e-05,2]
[423394952,1780082266000,515.0,8.027e-05,2]
[423394951,1780082266000,515.0,7.984e-05,2]
[423394950,1780082266000,515.0,7.941e-05,2]
[423394958,1780082267000,515.0,8.285e-05,2]
[423394957,1780082267000,515.0,8.242e-05,2]
[423394956,1780082267000,515.0,8.199e-05,2]
[423394955,1780082267000,515.0,8.156e-05,2]
[423394959,1780082268000,515.0,8.328e-05,2]
[423394960,1780082268000,515.0,8.371e-05,2]
[423394962,1780082268000,515.0,8.457e-05,2]
[423394961,1780082268000,515.0,8.414e-05,2]
[423394963,1780082269000,515.0,8.5e-05,2]
[423394964,1780082291000,-515.0,8.544e-05,2]
[423394965,1780082311000,-515.0,8.587e-05,2]
[423394966,1780082312000,2995.78,8.219e-05,2]
[423394968,1780082344000,-300.0,8.63e-05,2]
[423394969,1780082354000,159.29256343,0.00010861,7]
[423394970,1780082398000,-150.0,8.63e-05,2]
[423394971,1780082414000,500.0,8.008e-05,2]
[423394972,1780082451000,-300.0,8.629e-05,2]
[423394974,1780082504000,-500.0,8.533e-05,2]
[423394977,1780082511000,-1200.0,8.629e-05,2]
[423394975,1780082511000,-150.0,8.628e-05,2]
[423394979,1780082511000,-276.86540304,8.629e-05,2]
[423394976,1780082511000,-300.0,8.628e-05,2]
[423394978,1780082511000,-300.0,8.629e-05,2]
[423394985,1780082511000,-500.0,8.629e-05,2]
[423394981,1780082511000,-500.0,8.629e-05,2]
[423394982,1780082511000,-228.21970384,8.629e-05,2]
[423394984,1780082511000,-500.0,8.629e-05,2]
[423394983,1780082511000,-500.0,8.629e-05,2]
[423394980,1780082511000,-500.0,8.629e-05,2]
[423394996,1780082512000,-923.37028732,8.629e-05,2]
[423394995,1780082512000,-923.37028732,8.629e-05,2]
[423394994,1780082512000,-923.37028732,8.629e-05,2]
[423394992,1780082512000,-923.37028732,8.629e-05,2]
[423394991,1780082512000,-923.37028732,8.629e-05,2]
[423394989,1780082512000,-627.83883774,8.629e-05,2]
[423394987,1780082512000,-500.0,8.629e-05,2]
[423394988,1780082512000,-467.44145014,8.629e-05,2]
[423394990,1780082512000,-923.37028732,8.629e-05,2]
[423394997,1780082512000,-923.37028732,8.629e-05,2]
[423394986,1780082512000,-500.0,8.629e-05,2]
[423394993,1780082512000,-923.37028732,8.629e-05,2]
[423394998,1780082512000,-923.37028732,8.629e-05,2]
[423395012,1780082512000,-923.37028732,8.629e-05,2]
[423395000,1780082512000,-923.37028732,8.629e-05,2]
[423395013,1780082512000,-923.37028732,8.629e-05,2]
[423395011,1780082512000,-923.37028732,8.629e-05,2]
[423395009,1780082512000,-923.37028732,8.629e-05,2]
[423395010,1780082512000,-923.37028732,8.629e-05,2]
[423394999,1780082512000,-923.37028732,8.629e-05,2]
[423395006,1780082512000,-923.37028732,8.629e-05,2]
[423395008,1780082512000,-923.37028732,8.629e-05,2]
[423395004,1780082512000,-923.37028732,8.629e-05,2]
[423395005,1780082512000,-923.37028732,8.629e-05,2]
[423395002,1780082512000,-923.37028732,8.629e-05,2]
[423395003,1780082512000,-923.37028732,8.629e-05,2]
[423395001,1780082512000,-923.37028732,8.629e-05,2]
[423395007,1780082512000,-923.37028732,8.629e-05,2]
[423395018,1780082513000,-923.37028732,8.629e-05,2]
[423395021,1780082513000,-923.37028732,8.629e-05,2]
[423395020,1780082513000,-923.37028732,8.629e-05,2]
[423395019,1780082513000,-923.37028732,8.629e-05,2]
[423395024,1780082513000,-923.37028732,8.629e-05,2]
[423395015,1780082513000,-923.37028732,8.629e-05,2]
[423395016,1780082513000,-923.37028732,8.629e-05,2]
[423395014,1780082513000,-923.37028732,8.629e-05,2]
[423395017,1780082513000,-923.37028732,8.629e-05,2]
[423395022,1780082513000,-923.37028732,8.629e-05,2]
[423395030,1780082513000,-923.37028732,8.629e-05,2]
[423395027,1780082513000,-923.37028732,8.629e-05,2]
[423395026,1780082513000,-923.37028732,8.629e-05,2]
[423395025,1780082513000,-923.37028732,8.629e-05,2]
[423395029,1780082513000,-923.37028732,8.629e-05,2]
[423395028,1780082513000,-923.37028732,8.629e-05,2]
[423395032,1780082513000,-923.37028732,8.629e-05,2]
[423395031,1780082513000,-923.37028732,8.629e-05,2]
[423395033,1780082513000,-694.71225048,8.629e-05,2]
[423395023,1780082513000,-923.37028732,8.629e-05,2]
[423395035,1780082558000,20130.73,7.996e-05,2]
[423395034,1780082558000,-228.65803684,8.629e-05,2]
[423395036,1780082560000,90.71553945,9.484e-05,5]
[423395037,1780082560000,4088.28446055,9.484e-05,5]
[423395038,1780082561000,209.09056759,7.996e-05,2]
[423395039,1780082578000,1000.0,7.939e-05,2]
[423395040,1780082611000,-355.13575311,8.629e-05,2]
[423395041,1780082644000,500.0,7.995e-05,2]
[423395042,1780082644000,614.91951955,7.995e-05,2]
[423395043,1780082644000,500.0,7.995e-05,2]
[423395044,1780082644000,500.0,7.995e-05,2]
[423395045,1780082644000,500.0,7.995e-05,2]
[423395050,1780082657000,517.0873609,7.995e-05,2]
[423395049,1780082657000,517.0873609,7.995e-05,2]
[423395061,1780082658000,517.0873609,7.995e-05,2]
[423395059,1780082658000,517.0873609,7.995e-05,2]
[423395060,1780082658000,517.0873609,7.995e-05,2]
[423395058,1780082658000,517.0873609,7.995e-05,2]
[423395055,1780082658000,517.0873609,7.995e-05,2]
[423395057,1780082658000,517.0873609,7.995e-05,2]
[423395056,1780082658000,517.0873609,7.995e-05,2]
[423395054,1780082658000,517.0873609,7.995e-05,2]
[423395053,1780082658000,517.0873609,7.995e-05,2]
[423395052,1780082658000,517.0873609,7.995e-05,2]
[423395051,1780082658000,517.0873609,7.995e-05,2]
[423395062,1780082658000,517.0873609,7.995e-05,2]
[423395063,1780082658000,517.0873609,7.995e-05,2]
[423395072,1780082658000,517.0873609,7.995e-05,2]
[423395064,1780082658000,517.0873609,7.995e-05,2]
[423395078,1780082658000,517.0873609,7.995e-05,2]
[423395077,1780082658000,517.0873609,7.995e-05,2]
[423395065,1780082658000,517.0873609,7.995e-05,2]
[423395076,1780082658000,517.0873609,7.995e-05,2]
[423395074,1780082658000,517.0873609,7.995e-05,2]
[423395073,1780082658000,517.0873609,7.995e-05,2]
[423395075,1780082658000,517.0873609,7.995e-05,2]
[423395070,1780082658000,517.0873609,7.995e-05,2]
[423395069,1780082658000,517.0873609,7.995e-05,2]
[423395068,1780082658000,517.0873609,7.995e-05,2]
[423395066,1780082658000,517.0873609,7.995e-05,2]
[423395067,1780082658000,517.0873609,7.995e-05,2]
[423395071,1780082658000,517.0873609,7.995e-05,2]
[423395079,1780082659000,517.0873609,7.995e-05,2]
[423395081,1780082659000,517.0873609,7.995e-05,2]
[423395080,1780082659000,517.0873609,7.995e-05,2]
[423395085,1780082659000,517.0873609,7.995e-05,2]
[423395083,1780082659000,517.0873609,7.995e-05,2]
[423395084,1780082659000,517.0873609,7.995e-05,2]
[423395086,1780082659000,517.0873609,7.995e-05,2]
[423395082,1780082659000,517.0873609,7.995e-05,2]
[423395087,1780082659000,517.0873609,7.995e-05,2]
[423395090,1780082659000,517.0873609,7.995e-05,2]
[423395089,1780082659000,517.0873609,7.995e-05,2]
[423395091,1780082659000,517.0873609,7.995e-05,2]
[423395092,1780082659000,517.0873609,7.995e-05,2]
[423395093,1780082659000,517.0873609,7.995e-05,2]
[423395095,1780082659000,517.0873609,7.995e-05,2]
[423395094,1780082659000,517.0873609,7.995e-05,2]
[423395088,1780082659000,517.0873609,7.995e-05,2]
[423395096,1780082660000,517.0873609,7.995e-05,2]
[423395098,1780082660000,517.0873609,7.995e-05,2]
[423395099,1780082660000,517.0873609,7.995e-05,2]
[423395100,1780082660000,517.0873609,7.995e-05,2]
[423395097,1780082660000,517.0873609,7.995e-05,2]
[423395101,1780082660000,517.0873609,7.995e-05,2]
[423395120,1780082676000,620.50483308,7.995e-05,2]
[423395103,1780082676000,620.50483308,7.995e-05,2]
[423395105,1780082676000,620.50483308,7.995e-05,2]
[423395104,1780082676000,620.50483308,7.995e-05,2]
[423395106,1780082676000,620.50483308,7.995e-05,2]
[423395107,1780082676000,620.50483308,7.995e-05,2]
[423395108,1780082676000,620.50483308,7.995e-05,2]
[423395109,1780082676000,620.50483308,7.995e-05,2]
[423395110,1780082676000,620.50483308,7.995e-05,2]
[423395102,1780082676000,620.50483308,7.995e-05,2]
[423395112,1780082676000,620.50483308,7.995e-05,2]
[423395113,1780082676000,620.50483308,7.995e-05,2]
[423395114,1780082676000,620.50483308,7.995e-05,2]
[423395116,1780082676000,620.50483308,7.995e-05,2]
[423395115,1780082676000,620.50483308,7.995e-05,2]
[423395117,1780082676000,620.50483308,7.995e-05,2]
[423395118,1780082676000,620.50483308,7.995e-05,2]
[423395119,1780082676000,620.50483308,7.995e-05,2]
[423395111,1780082676000,620.50483308,7.995e-05,2]
[423395121,1780082677000,620.50483308,7.995e-05,2]
[423395122,1780082677000,620.50483308,7.995e-05,2]
[423395123,1780082677000,620.50483308,7.995e-05,2]
[423395124,1780082677000,620.50483308,7.995e-05,2]
[423395126,1780082677000,620.50483308,7.995e-05,2]
[423395127,1780082677000,620.50483308,7.995e-05,2]
[423395128,1780082677000,620.50483308,7.995e-05,2]
[423395125,1780082677000,620.50483308,7.995e-05,2]
[423395129,1780082677000,620.50483308,7.995e-05,2]
[423395130,1780082684000,325.88830417,7.995e-05,2]
[423395132,1780082689000,500.0,7.995e-05,2]
[423395131,1780082689000,594.65046506,7.995e-05,2]
[423395137,1780082699000,338.80897011,8.219e-05,2]
[423395136,1780082699000,500.0,8.219e-05,2]
[423395135,1780082699000,500.0,8.219e-05,2]
[423395134,1780082699000,500.0,8.219e-05,2]
[423395133,1780082699000,500.0,8.219e-05,2]
[423395138,1780082707000,500.0,7.995e-05,2]
[423395139,1780082720000,500.0,7.995e-05,2]
[423395140,1780082732000,500.0,7.995e-05,2]
[423395141,1780082743000,365.01485468,7.995e-05,2]
[423395142,1780082744000,500.0,7.995e-05,2]
[423395145,1780082916000,-7178.7493,8.609e-05,2]
[423395146,1780082941000,1000.0,0.00028081,120]
[423395147,1780082970000,-300.0,8.608e-05,2]
[423395148,1780082979000,741.88,7.85e-05,2]
[423395149,1780083023000,-300.0,8.608e-05,2]
[423395150,1780083032000,-300.0,8.608e-05,2]
[423395152,1780083032000,-473.18083753,8.608e-05,2]
[423395153,1780083032000,-150.0,8.608e-05,2]
[423395155,1780083032000,-373.42083753,8.608e-05,2]
[423395151,1780083032000,-726.81916247,8.608e-05,2]
[423395157,1780083032000,-500.0,8.608e-05,2]
[423395154,1780083032000,-126.57916247,8.608e-05,2]
[423395158,1780083032000,-437.56008685,8.608e-05,2]
[423395159,1780083032000,-62.43991315,8.608e-05,2]
[423395156,1780083032000,-330.44366368,8.608e-05,2]
[423395173,1780083033000,-500.0,8.608e-05,2]
[423395183,1780083033000,-500.0,8.608e-05,2]
[423395178,1780083033000,-500.0,8.608e-05,2]
[423395181,1780083033000,-450.88815395,8.608e-05,2]
[423395177,1780083033000,-500.0,8.608e-05,2]
[423395172,1780083033000,-500.0,8.608e-05,2]
[423395175,1780083033000,-500.0,8.608e-05,2]
[423395176,1780083033000,-500.0,8.608e-05,2]
[423395174,1780083033000,-500.0,8.608e-05,2]
[423395170,1780083033000,-500.0,8.608e-05,2]
[423395165,1780083033000,-500.0,8.608e-05,2]
[423395166,1780083033000,-500.0,8.608e-05,2]
[423395163,1780083033000,-500.0,8.608e-05,2]
[423395171,1780083033000,-500.0,8.608e-05,2]
[423395167,1780083033000,-500.0,8.608e-05,2]
[423395168,1780083033000,-500.0,8.608e-05,2]
[423395164,1780083033000,-500.0,8.608e-05,2]
[423395161,1780083033000,-500.0,8.608e-05,2]
[423395162,1780083033000,-500.0,8.608e-05,2]
[423395160,1780083033000,-500.0,8.608e-05,2]
[423395169,1780083033000,-500.0,8.608e-05,2]
[423395179,1780083033000,-500.0,8.608e-05,2]
[423395222,1780083033000,-164850.84230223,8.609e-05,2]
[423395187,1780083033000,-500.0,8.608e-05,2]
[423395229,1780083033000,-1849.92141694,8.609e-05,2]
[423395228,1780083033000,-750.01,8.609e-05,2]
[423395217,1780083033000,-348298.5450863,8.609e-05,2]
[423395215,1780083033000,-500.0,8.608e-05,2]
[423395211,1780083033000,-500.0,8.608e-05,2]
[423395213,1780083033000,-637.16627908,8.608e-05,2]
[423395224,1780083033000,-508.63425117,8.609e-05,2]
[423395220,1780083033000,-51010.85071352,8.609e-05,2]
[423395185,1780083033000,-500.0,8.608e-05,2]
[423395207,1780083033000,-500.0,8.608e-05,2]
[423395209,1780083033000,-299.99999999,8.608e-05,2]
[423395193,1780083033000,-500.0,8.608e-05,2]
[423395194,1780083033000,-500.0,8.608e-05,2]
[423395189,1780083033000,-500.0,8.608e-05,2]
[423395196,1780083033000,-500.0,8.608e-05,2]
[423395188,1780083033000,-500.0,8.608e-05,2]
[423395205,1780083033000,-500.0,8.608e-05,2]
[423395201,1780083033000,-228.12181292,8.608e-05,2]
[423395202,1780083033000,-500.0,8.608e-05,2]
[423395198,1780083033000,-500.0,8.608e-05,2]
[423395190,1780083033000,-500.0,8.608e-05,2]
[423395236,1780083038000,-3309.14045596,8.609e-05,2]
[423395237,1780083038000,-9764.44342252,8.609e-05,2]
[423395238,1780083038000,-409.6662797,8.609e-05,2]
[423395239,1780083038000,-948.89821074,8.609e-05,2]
[423395242,1780083038000,-887.44458915,8.609e-05,2]
[423395240,1780083038000,-618.39582389,8.609e-05,2]
[423395244,1780083038000,-3159.23901097,8.609e-05,2]
[423395243,1780083038000,-1042.60464975,8.609e-05,2]
[423395241,1780083038000,-427.11724767,8.609e-05,2]
[423395542,1780083041000,-31684.9317,8.609e-05,2]
[423395539,1780083041000,-41965.9449915,8.609e-05,2]
[423395531,1780083041000,-652238.92126209,8.609e-05,2]
[423395533,1780083041000,-2345768.4793057,8.609e-05,2]
[423395528,1780083041000,-5333.6184774,8.609e-05,2]
[423395854,1780083043000,-1138.19391253,8.609e-05,2]
[423395898,1780083043000,-39813.13772422,8.609e-05,2]
[423395909,1780083043000,-1333.43606581,8.609e-05,2]
[423395915,1780083043000,-430.54649741,8.609e-05,2]
[423395907,1780083043000,-7494.16175073,8.609e-05,2]
[423396312,1780083046000,-1580.84,8.708e-05,2]
[423396287,1780083046000,-374.31342268,8.609e-05,2]
[423396309,1780083046000,-9999.99,8.701e-05,2]
[423396307,1780083046000,-1000.0,8.701e-05,2]
[423396303,1780083046000,-287.50586336,8.697e-05,2]
[423396305,1780083046000,-215.5484138,8.698e-05,2]
[423396293,1780083046000,-209.09056759,8.609e-05,2]
[423396301,1780083046000,-249.0,8.694e-05,2]
[423396314,1780083046000,-999.99,8.708e-05,2]
[423396291,1780083046000,-75644.1661,8.609e-05,2]
[423396299,1780083046000,-287.50586338,8.684e-05,2]
[423396295,1780083046000,-250.0,8.647e-05,2]
[423396297,1780083046000,-2001.48717962,8.647e-05,2]
[423396284,1780083046000,-11842.44767862,8.609e-05,2]
[423396247,1780083046000,-910.07126,8.609e-05,2]
[423396245,1780083046000,-3693.77166286,8.609e-05,2]
[423396243,1780083046000,-314.55,8.609e-05,2]
[423396289,1780083046000,-13236.01402794,8.609e-05,2]
[423396316,1780083046000,-2133.04,8.708e-05,2]
[423396330,1780083046000,-4999.99,8.709e-05,2]
[423396324,1780083046000,-23309.13,8.708e-05,2]
[423396357,1780083046000,-933.0,8.815e-05,2]